bitfinex/quotes_SOLUSD_20250918
["timestamp","ask_amount","ask_price","bid_price","bid_amount"]
[1758162914497,0.06,245.55,245.54,48.06987422]
[1758162914810,0.06,245.58,245.57,17.9520758]
[1758162914994,0.06,245.58,245.57,21.93198994]
[1758162915307,0.06,245.58,245.57,20.63203287]
[1758162916385,0.06,245.58,245.57,52.11203287]
[1758162916591,0.06,245.58,245.57,52.09203287]
[1758162916805,0.06,245.58,245.57,50.1020758]
[1758162916999,0.06,245.58,245.57,52.09203287]
[1758162918406,0.06,245.59,245.58,13.87991715]
[1758162918619,0.06,245.59,245.58,18.54983129]
[1758162918790,0.06,245.59,245.58,0.28432314]
[1758162918985,0.06,245.59,245.58,31.46]
[1758162919189,0.06,245.59,245.58,31.74432314]
[1758162919394,0.06,245.59,245.58,34.42428021]
[1758162919588,0.06,245.59,245.58,48.01987422]
[1758162919807,0.06,245.6,245.58,48.01987422]
[1758162919808,0.06,245.6,245.59,13.87991715]
[1758162919987,1e-08,245.6,245.59,17.85983129]
[1758162920189,1e-08,245.6,245.59,22.62165831]
[1758162921390,1e-08,245.6,245.59,54.08165831]
[1758162922203,1e-08,245.6,245.59,22.62165831]
[1758162922399,1e-08,245.6,245.59,54.08165831]
[1758162922600,0.06,245.62,245.61,39.87991715]
[1758162922601,1e-08,245.62,245.61,39.87991715]
[1758162922807,1e-08,245.62,245.61,73.32987422]
[1758162923011,1e-08,245.62,245.61,74.01987422]
[1758162923909,1e-08,245.62,245.61,78.09136968]
[1758162924535,1e-08,245.62,245.61,76.10141261]
[1758162924691,1e-08,245.62,245.61,78.09136968]
[1758162926905,0.06,245.64,245.62,0.28432314]
[1758162927101,0.06,245.64,245.63,48.01987422]
[1758162928018,0.06,245.64,245.63,20.63103816]
[1758162928213,0.06,245.64,245.63,51.40103816]
[1758162928918,0.06,245.64,245.63,19.94103816]
[1758162929124,0.06,245.64,245.63,51.40103816]
[1758162931325,0.77,245.64,245.63,6.34544415]
[1758162931526,0.77,245.64,245.63,37.52112101]
[1758162931832,0.77,245.64,245.62,1.98995707]
[1758162932011,0.06,245.64,245.63,31.46]
[1758162932515,0.77,245.64,245.63,31.46]
[1758162933618,0.77,245.64,245.63,33.44995707]
[1758162934732,0.77,245.64,245.63,31.46]
[1758162934936,0.77,245.64,245.63,33.44995707]
[1758162935607,0.77,245.64,245.62,4.07126897]
[1758162935811,0.06,245.64,245.63,33.44995707]
[1758162936335,0.73,245.64,245.63,33.44995707]
[1758162937049,0.73,245.64,245.63,31.46]
[1758162937233,0.73,245.64,245.6,1.98995707]
[1758162937420,0.67,245.63,245.61,33.44995707]
[1758162937624,0.06,245.64,245.62,33.44995707]
[1758162938133,0.67,245.63,245.62,33.44995707]
[1758162940217,0.67,245.63,245.62,31.46]
[1758162940413,0.67,245.63,245.62,33.44995707]
[1758162940951,0.67,245.63,245.62,31.46]
[1758162941956,0.67,245.63,245.61,1.98995707]
[1758162942125,0.06,245.64,245.62,31.46]
[1758162942754,0.67,245.63,245.62,31.46]
[1758162942936,0.67,245.63,245.6,1.98995707]
[1758162943131,0.67,245.62,245.61,31.46]
[1758162944155,0.67,245.62,245.61,33.44995707]
[1758162944646,0.67,245.62,245.61,31.46]
[1758162945031,0.67,245.62,245.59,2.01995707]
[1758162945227,0.67,245.61,245.6,31.46]
[1758162945631,0.67,245.61,245.59,2.01995707]
[1758162945832,4.13102925,245.64,245.6,31.46]
[1758162946127,4.13102925,245.64,245.61,31.46]
[1758162946338,0.67,245.63,245.61,31.46]
[1758162946537,4.13102925,245.64,245.59,2.01995707]
[1758162946747,0.67,245.62,245.6,31.46]
[1758162946949,0.67,245.61,245.6,31.46]
[1758162947529,6.73147755,245.61,245.59,0.03]
[1758162947729,27.98995707,245.6,245.59,0.03]
[1758162948036,1.98995707,245.6,245.59,31.49]
[1758162948351,2.65995707,245.6,245.59,31.49]
[1758162948945,2.65995707,245.6,245.59,0.03]
[1758162949147,3.98684231,245.6,245.59,0.03]
[1758162949328,6.69689252,245.6,245.59,0.03]
[1758162951050,22.2824436,245.6,245.59,0.03]
[1758162951440,20.29248653,245.6,245.59,0.03]
[1758162951944,22.2824436,245.6,245.59,0.03]
[1758162953141,23.91339913,245.6,245.59,0.03]
[1758162954364,49.91339913,245.6,245.59,0.03]
[1758162954660,23.91339913,245.6,245.59,0.03]
[1758162955163,49.91339913,245.6,245.59,0.03]
[1758162955465,55.37339913,245.6,245.59,0.03]
[1758162956454,23.91339913,245.6,245.59,0.03]
[1758162956665,55.37339913,245.6,245.59,0.03]
[1758162956961,53.38344206,245.6,245.59,0.03]
[1758162957169,51.75248653,245.6,245.59,0.03]
[1758162958067,53.7424436,245.6,245.59,0.03]
[1758162958249,22.2824436,245.6,245.59,0.03]
[1758162960545,53.7424436,245.6,245.59,0.03]
[1758162961257,22.2824436,245.6,245.59,0.03]
[1758162961768,19.933485,245.6,245.59,0.03]
[1758162961956,20.29248653,245.6,245.59,0.03]
[1758162964858,22.2824436,245.6,245.59,0.03]
[1758162965937,24.67360261,245.6,245.59,0.03]
[1758162966865,43.74877303,245.59,245.57,0.03]
[1758162967060,1.35556663,245.59,245.57,0.03]
[1758162967250,26.0,245.58,245.57,0.73]
[1758162967443,41.55980864,245.58,245.57,0.03]
[1758162968054,42.88194243,245.58,245.57,0.03]
[1758162968663,41.6077278,245.58,245.57,0.03]
[1758162968846,42.88194243,245.58,245.57,0.03]
[1758162969349,46.95393526,245.58,245.57,0.03]
[1758162972168,49.65509503,245.58,245.57,0.03]
[1758162972472,51.28625009,245.58,245.57,0.03]
[1758162973979,51.28625009,245.58,245.56,1e-08]
[1758162974280,36.75750819,245.57,245.56,1e-08]
[1758162974653,52.67425727,245.57,245.56,1e-08]
[1758162975364,52.95858041,245.57,245.56,1e-08]
[1758162976557,51.63644662,245.57,245.56,1e-08]
[1758162976765,52.9593279,245.57,245.56,1e-08]
[1758162978990,52.959832,245.57,245.56,1e-08]
[1758162981180,56.34477883,245.57,245.56,1e-08]
[1758162982482,17.66791849,245.56,245.54,0.03]
[1758162982686,13.59559401,245.54,245.53,1e-08]
[1758162982890,18.89435379,245.54,245.53,1e-08]
[1758162983194,21.21577496,245.54,245.53,1e-08]
[1758162984294,28.67337797,245.54,245.53,1e-08]
[1758162986285,28.67337797,245.54,245.48,0.03]
[1758162986286,39.87991715,245.49,245.48,0.03]
[1758162986471,76.63867693,245.49,245.48,0.03]
[1758162986672,77.32867693,245.49,245.48,0.03]
[1758162987069,78.960564,245.49,245.48,0.03]
[1758162987580,83.03404968,245.49,245.48,0.03]
[1758162990174,13.87991715,245.48,245.47,1e-08]
[1758162990369,22.56003581,245.48,245.47,1e-08]
[1758162990580,23.25003581,245.48,245.47,1e-08]
[1758162990782,21.92665043,245.48,245.47,1e-08]
[1758162991069,24.87157144,245.48,245.47,1e-08]
[1758162992270,21.49021256,245.48,245.47,1e-08]
[1758162992474,24.87304381,245.48,245.47,1e-08]
[1758162993274,22.62450604,245.48,245.47,1e-08]
[1758162993500,50.34400235,245.48,245.47,1e-08]
[1758162994188,49.06978772,245.48,245.47,1e-08]
[1758162994498,18.88400235,245.48,245.47,1e-08]
[1758162994701,19.56400235,245.48,245.47,1e-08]
[1758162995198,24.5786541,245.48,245.47,1e-08]
[1758162995595,23.8986541,245.48,245.47,1e-08]
[1758162995798,24.5786541,245.48,245.47,1e-08]
[1758162995997,23.8986541,245.48,245.47,1e-08]
[1758162996479,20.51582285,245.48,245.47,1e-08]
[1758162998698,20.5159112,245.48,245.47,1e-08]
[1758163000389,21.1959112,245.48,245.47,1e-08]
[1758163001184,21.48023434,245.48,245.47,1e-08]
[1758163002599,19.24169657,245.48,245.47,1e-08]
[1758163002780,51.9759112,245.48,245.47,1e-08]
[1758163004696,18.8840907,245.48,245.47,0.66000001]
[1758163005082,4.01428206,245.48,245.47,0.66000001]
[1758163005284,2.58733692,245.48,245.47,0.66000001]
[1758163005490,1.27421463,245.48,245.47,0.66000001]
[1758163006304,2.58740693,245.48,245.47,0.66000001]
[1758163007794,2.58740693,245.48,245.47,1e-08]
[1758163008304,2.58740693,245.48,245.47,0.66000001]
[1758163009492,26.0,245.48,245.47,0.66000001]
[1758163012806,26.06,245.49,245.47,0.66000001]
[1758163013110,0.06,245.49,245.47,6.00798373]
[1758163013312,0.06,245.49,245.48,0.66]
[1758163013992,0.06,245.49,245.48,1.93421463]
[1758163015012,0.06,245.49,245.48,2.21853777]
[1758163019310,0.06,245.49,245.48,3.4927524]
[1758163020201,0.06,245.49,245.48,2.21853777]
[1758163020408,0.06,245.49,245.48,33.67853777]
[1758163021214,0.06,245.49,245.48,48.54834641]
[1758163021713,0.06,245.49,245.48,17.08834641]
[1758163021890,0.06,245.49,245.48,47.27413178]
[1758163022696,0.06,245.52,245.48,47.27413178]
[1758163022697,0.06,245.52,245.51,26.28432314]
[1758163023007,0.06,245.52,245.51,27.55853777]
[1758163023210,0.06,245.52,245.51,32.35169161]
[1758163023405,1e-08,245.52,245.51,45.94728562]
[1758163023919,1e-08,245.52,245.51,62.51747698]
[1758163024220,1e-08,245.52,245.51,37.79169161]
[1758163026820,1e-08,245.52,245.51,6.35169161]
[1758163026997,1e-08,245.52,245.51,37.79169161]
[1758163027910,1e-08,245.52,245.51,38.50696054]
[1758163028606,1e-08,245.52,245.51,52.10255455]
[1758163029313,1e-08,245.52,245.51,131.00255455]
[1758163031018,0.081352,245.59,245.55,0.28432314]
[1758163031205,0.081352,245.59,245.58,2.2738067]
[1758163031404,0.081352,245.59,245.58,2.9938067]
[1758163031813,0.081352,245.59,245.58,2.2738067]
[1758163032121,0.081352,245.59,245.58,33.7138067]
[1758163032930,0.081352,245.59,245.58,38.50579953]
[1758163034014,0.081352,245.59,245.58,7.06579953]
[1758163034417,0.081352,245.59,245.58,38.50579953]
[1758163035245,0.141352,245.59,245.58,38.50579953]
[1758163037627,0.141352,245.59,245.58,4.35631597]
[1758163037809,0.141352,245.59,245.58,37.78579953]
[1758163038425,0.141352,245.59,245.58,6.34579953]
[1758163038630,0.801352,245.59,245.58,31.44]
[1758163039808,0.801352,245.59,245.57,4.072029]
[1758163040009,0.801352,245.59,245.58,31.44]
[1758163040507,0.801352,245.59,245.57,6.06151256]
[1758163040833,0.801352,245.59,245.58,31.44]
[1758163041830,0.801352,245.59,245.55,0.28432314]
[1758163042019,0.801352,245.59,245.55,6.34618644]
[1758163042215,0.66,245.58,245.56,31.42]
[1758163042602,0.801352,245.59,245.56,31.42]
[1758163044132,0.801352,245.59,245.57,4.07215865]
[1758163044325,0.801352,245.59,245.58,31.42]
[1758163044526,0.801352,245.59,245.57,4.07215865]
[1758163044722,0.801352,245.59,245.58,31.42]
[1758163045549,0.801352,245.59,245.56,1.98948356]
[1758163045711,0.66,245.58,245.57,31.42]
[1758163049314,0.141352,245.59,245.57,33.40948356]
[1758163049651,0.141352,245.59,245.58,2.9938067]
[1758163050019,0.141352,245.59,245.58,2.2738067]
[1758163050423,0.141352,245.59,245.58,2.9938067]
[1758163051513,1e-08,245.62,245.61,39.87991715]
[1758163051714,1e-08,245.63,245.62,13.87991715]
[1758163051954,0.06,245.66,245.64,39.87991715]
[1758163052124,0.06,245.66,245.64,73.28940071]
[1758163052313,0.06,245.66,245.64,74.00940071]
[1758163053038,0.06,245.66,245.64,77.33576389]
[1758163053226,0.06,245.66,245.64,74.00940071]
[1758163053431,0.06,245.66,245.64,78.08039891]
[1758163055456,0.06,245.66,245.64,90.32515806]
[1758163056859,0.06,245.66,245.64,58.90515806]
[1758163057040,0.06,245.66,245.64,90.32515806]
[1758163058523,0.06,245.66,245.64,58.90515806]
[1758163058728,0.06,245.66,245.64,90.32515806]
[1758163058952,0.06,245.66,245.64,58.90515806]
[1758163059249,0.06,245.66,245.64,90.32515806]
[1758163063235,0.06,245.66,245.64,89.60515806]
[1758163064049,0.06,245.66,245.64,90.30515806]
[1758163064255,0.06,245.66,245.64,169.20515806]
[1758163064857,0.06,245.66,245.64,137.78515806]
[1758163065040,1e-08,245.65,245.64,169.20515806]
[1758163065862,1e-08,245.65,245.64,170.83445277]
[1758163067852,1e-08,245.65,245.64,168.84496921]
[1758163068067,1e-08,245.65,245.64,170.83445277]
[1758163068973,1e-08,245.65,245.64,138.71445277]
[1758163069149,1e-08,245.65,245.64,168.48515806]
[1758163070043,1e-08,245.65,245.64,137.08515806]
[1758163070245,1e-08,245.65,245.64,168.48515806]
[1758163070843,0.71000001,245.65,245.64,18.30524091]
[1758163071262,0.71000001,245.65,245.64,49.98956405]
[1758163071572,0.71000001,245.65,245.64,37.46048176]
[1758163071753,0.71000001,245.65,245.63,1.98948356]
[1758163071952,1e-08,245.65,245.64,31.4]
[1758163072558,0.71000001,245.65,245.64,33.38948356]
[1758163073074,0.71000001,245.65,245.64,37.46048176]
[1758163076466,0.71000001,245.65,245.64,35.4709982]
[1758163076668,0.71000001,245.65,245.64,37.46048176]
[1758163077255,0.71000001,245.65,245.64,33.38948356]
[1758163079482,0.71000001,245.65,245.64,1.98948356]
[1758163079661,0.71000001,245.65,245.64,33.38948356]
[1758163080561,0.71000001,245.65,245.64,31.4]
[1758163080762,0.71000001,245.65,245.64,33.38948356]
[1758163082973,0.71000001,245.65,245.64,31.4]
[1758163083179,0.71000001,245.65,245.64,33.38948356]
[1758163083358,1e-08,245.65,245.64,33.38948356]
[1758163083566,1e-08,245.65,245.64,34.3338067]
[1758163083973,1e-08,245.65,245.64,33.6738067]
[1758163084356,1e-08,245.65,245.64,34.3338067]
[1758163084685,1e-08,245.65,245.64,33.6738067]
[1758163086580,0.67000001,245.65,245.64,33.6738067]
[1758163086753,0.67000001,245.65,245.61,4.07135465]
[1758163086958,0.67,245.64,245.62,31.4]
[1758163087158,0.67,245.63,245.62,31.68432314]
[1758163087380,0.67,245.63,245.62,31.4]
[1758163087578,0.67,245.63,245.59,1.98948356]
[1758163087789,0.67,245.63,245.58,0.03]
[1758163087790,0.67,245.62,245.58,0.03]
[1758163087963,0.67,245.62,245.59,31.4]
[1758163088164,0.67,245.61,245.59,31.4]
[1758163088469,0.67,245.6,245.59,31.4]
[1758163088866,0.67,245.6,245.58,0.03]
[1758163089061,0.67,245.6,245.59,31.4]
[1758163089695,0.67,245.6,245.59,31.43]
[1758163090158,0.67,245.6,245.59,0.03]
[1758163090364,0.67,245.6,245.59,31.43]
[1758163091171,4.07096321,245.65,245.59,36.77521302]
[1758163091172,1e-08,245.65,245.59,36.77521302]
[1758163091370,1e-08,245.65,245.64,1.27343451]
[1758163091590,1e-08,245.65,245.64,32.67343451]
[1758163091804,0.67000001,245.65,245.64,32.67343451]
[1758163092773,0.67000001,245.65,245.64,31.4]
[1758163095375,1e-08,245.65,245.64,32.67343451]
[1758163096576,1e-08,245.65,245.64,33.61775765]
[1758163097798,1e-08,245.65,245.64,32.95775765]
[1758163098100,0.67000001,245.65,245.64,32.95775765]
[1758163098282,1e-08,245.65,245.64,1.55775765]
[1758163098482,1e-08,245.65,245.64,32.95775765]
[1758163099095,1e-08,245.65,245.63,4.07110989]
[1758163099096,0.67000001,245.65,245.63,1.27343451]
[1758163099288,0.67,245.64,245.59,4.10171153]
[1758163099489,0.67,245.63,245.61,1.27343451]
[1758163099694,0.67,245.62,245.61,1.27343451]
[1758163099898,1e-08,245.65,245.61,1.27343451]
[1758163100198,0.67000001,245.65,245.63,1.27343451]
[1758163100400,1e-08,245.65,245.64,31.4]
[1758163100699,0.67000001,245.65,245.64,31.4]
[1758163101394,1e-08,245.65,245.64,32.67343451]
[1758163104189,0.67000001,245.65,245.62,1.27343451]
[1758163104504,0.67000001,245.65,245.61,4.07135889]
[1758163104505,0.67,245.64,245.63,31.4]
[1758163105586,1e-08,245.65,245.63,32.67343451]
[1758163106899,1e-08,245.65,245.63,36.74454942]
[1758163107489,1e-08,245.65,245.64,31.4]
[1758163107811,1e-08,245.65,245.64,32.67343451]
[1758163108614,1e-08,245.65,245.64,31.4]
[1758163108886,1e-08,245.65,245.64,32.67343451]
[1758163110899,0.67000001,245.65,245.64,32.67343451]
[1758163111200,0.67000001,245.65,245.63,1.30343451]
[1758163111392,0.67,245.64,245.63,0.03]
[1758163111717,1e-08,245.65,245.64,0.66]
[1758163112017,1e-08,245.65,245.64,2.21775765]
[1758163112806,1e-08,245.65,245.64,6.28875585]
[1758163114411,1e-08,245.65,245.64,19.88434986]
[1758163120510,0.72000001,245.65,245.64,37.00875585]
[1758163120699,1e-08,245.65,245.64,37.66875585]
[1758163121616,1e-08,245.65,245.64,37.00875585]
[1758163123900,0.72000001,245.65,245.63,0.03]
[1758163124105,0.72,245.64,245.63,0.03]
[1758163124800,1.73799637,245.64,245.63,0.03]
[1758163125217,0.72,245.64,245.63,0.03]
[1758163128124,1.99343451,245.64,245.63,0.03]
[1758163128498,3.01143367,245.64,245.63,0.03]
[1758163129515,1.73799916,245.64,245.63,0.03]
[1758163129701,0.72,245.64,245.63,0.03]
[1758163130916,1e-08,245.65,245.63,0.03]
[1758163131124,0.72000001,245.65,245.63,0.03]
[1758163131720,1e-08,245.65,245.63,0.03]
[1758163131924,1e-08,245.65,245.64,31.4]
[1758163132111,0.72000001,245.65,245.64,31.4]
[1758163134125,0.72000001,245.65,245.64,2.21775765]
[1758163134126,1e-08,245.65,245.64,2.21775765]
[1758163134306,1e-08,245.65,245.64,33.61775765]
[1758163135716,1e-08,245.65,245.64,31.68432314]
[1758163135923,1e-08,245.65,245.64,32.95775765]
[1758163136316,1e-08,245.65,245.64,33.61775765]
[1758163137014,1e-08,245.65,245.64,1.55775765]
[1758163137216,1e-08,245.65,245.64,32.95775765]
[1758163137610,1e-08,245.65,245.64,33.61775765]
[1758163138506,1e-08,245.65,245.64,32.34432314]
[1758163138714,1e-08,245.65,245.64,33.61775765]
[1758163142449,1e-08,245.65,245.64,34.02485747]
[1758163143037,1e-08,245.65,245.64,33.61775765]
[1758163143709,0.06,245.66,245.65,4.35515562]
[1758163143902,0.06,245.66,245.65,6.33859013]
[1758163144528,0.06,245.66,245.65,37.71859013]
[1758163145212,0.06,245.66,245.65,37.00859013]
[1758163145911,0.06,245.66,245.65,4.35515562]
[1758163146105,0.06,245.66,245.65,37.00859013]
[1758163146317,0.74,245.66,245.65,36.72426699]
[1758163146626,0.74,245.66,245.65,31.38]
[1758163148746,0.74,245.66,245.65,33.36883092]
[1758163149539,0.74,245.66,245.65,31.38]
[1758163149836,0.74,245.66,245.65,33.36883092]
[1758163151519,0.74,245.66,245.65,31.38]
[1758163156353,26.74,245.66,245.65,31.38]
[1758163157934,4.07083248,245.65,245.63,0.03]
[1758163158142,4.07083248,245.65,245.64,31.38]
[1758163158348,5.76879878,245.65,245.64,31.38]
[1758163158535,27.6979663,245.65,245.64,31.38]
[1758163159352,27.6979663,245.65,245.63,0.03]
[1758163159531,27.6979663,245.65,245.61,0.03]
[1758163159532,26.0,245.62,245.61,0.03]
[1758163159731,29.73288553,245.62,245.61,0.03]
[1758163160052,27.69796499,245.62,245.61,0.03]
[1758163160754,1.69796499,245.62,245.61,0.03]
[1758163161526,3.68679591,245.62,245.61,0.03]
[1758163167550,17.28261847,245.62,245.61,0.03]
[1758163167848,19.99419091,245.62,245.61,0.03]
[1758163169054,45.99419091,245.62,245.61,0.03]
[1758163169251,19.99419091,245.62,245.61,0.03]
[1758163170133,17.28261847,245.62,245.61,0.03]
[1758163173467,19.99109986,245.62,245.61,0.03]
[1758163174169,17.28261847,245.62,245.61,0.03]
[1758163176545,43.28261847,245.62,245.61,0.03]
[1758163176870,17.28261847,245.62,245.61,0.03]
[1758163178474,1.01819354,245.62,245.61,0.03]
[1758163178650,26.0,245.62,245.61,0.03]
[1758163178984,27.01819354,245.62,245.61,0.03]
[1758163180549,26.0,245.62,245.61,0.03]
[1758163181252,1.01813504,245.62,245.61,0.03]
[1758163181674,3.66696596,245.62,245.61,0.03]
[1758163182166,3.00696596,245.62,245.61,0.03]
[1758163182768,3.66696596,245.62,245.61,0.03]
[1758163183369,1.01813504,245.62,245.61,0.03]
[1758163183566,0.06,245.63,245.61,0.74]
[1758163184280,0.06,245.63,245.61,0.03]
[1758163184657,1.07806665,245.63,245.61,0.03]
[1758163185283,0.06,245.63,245.61,0.03]
[1758163185775,1.07806665,245.63,245.61,0.03]
[1758163186183,0.06,245.63,245.61,0.03]
[1758163186883,2.04883092,245.63,245.61,0.03]
[1758163190187,1.01806665,245.62,245.61,0.03]
[1758163191764,3.66689757,245.62,245.61,0.03]
[1758163193880,3.00689757,245.62,245.61,0.03]
[1758163194077,1.01806665,245.62,245.61,0.03]
[1758163196270,3.73197876,245.62,245.61,0.03]
[1758163199179,6.42080968,245.62,245.61,0.03]
[1758163200590,5.72080968,245.62,245.61,0.03]
[1758163200781,6.42080968,245.62,245.61,0.03]
[1758163201290,4.43197876,245.62,245.61,0.03]
[1758163201693,6.42080968,245.62,245.61,0.03]
[1758163201996,4.43197876,245.62,245.61,0.03]
[1758163202593,3.73197876,245.62,245.61,0.72]
[1758163202771,1.01806665,245.62,245.61,0.72]
[1758163202974,1.01806665,245.62,245.61,0.03]
[1758163203170,3.73645133,245.62,245.61,0.03]
[1758163207896,4.45645133,245.62,245.61,0.03]
[1758163208075,6.44528225,245.62,245.61,0.03]
[1758163209883,5.73005071,245.62,245.61,0.03]
[1758163210504,5.73016252,245.62,245.61,0.03]
[1758163211701,19.32575653,245.62,245.61,0.03]
[1758163213995,19.32582662,245.62,245.61,0.03]
[1758163215012,3.73663323,245.62,245.61,0.03]
[1758163215808,3.73663323,245.62,245.61,1.98359938]
[1758163216106,0.06,245.63,245.61,1.98359938]
[1758163216310,0.06,245.63,245.62,1.95359938]
[1758163216493,1.07799684,245.63,245.62,1.95359938]
[1758163217192,0.06,245.63,245.62,1.95359938]
[1758163221610,0.06,245.63,245.62,1.27359938]
[1758163222091,0.06,245.63,245.62,1.95359938]
[1758163223100,0.06,245.63,245.61,1.30359938]
[1758163223616,0.78,245.63,245.62,31.38]
[1758163223811,4.51329531,245.63,245.62,31.38]
[1758163224000,3.79329531,245.63,245.62,31.38]
[1758163224614,1.0780589,245.63,245.62,33.33359938]
[1758163225195,0.06,245.63,245.62,33.33359938]
[1758163226605,0.06,245.63,245.62,31.38]
[1758163226911,0.06,245.63,245.62,32.65359938]
[1758163227299,0.06,245.63,245.62,31.38]
[1758163227498,0.06,245.63,245.62,32.65359938]
[1758163228618,0.06,245.63,245.62,31.38]
[1758163228808,0.06,245.63,245.62,32.65359938]
[1758163229826,0.06,245.63,245.62,33.33359938]
[1758163230116,0.06,245.63,245.62,32.06]
[1758163230315,0.06,245.63,245.62,33.33359938]
[1758163233325,0.78,245.63,245.62,32.65359938]
[1758163233614,0.78,245.63,245.62,31.38]
[1758163233824,0.06,245.63,245.62,31.38]
[1758163235611,0.06,245.63,245.62,32.65359938]
[1758163239516,0.06,245.63,245.62,31.38]
[1758163239719,0.06,245.63,245.62,32.65359938]
[1758163239926,0.78,245.63,245.62,31.38]
[1758163240805,5.78496552,245.63,245.62,31.38]
[1758163241224,4.07132969,245.62,245.61,0.03]
[1758163241404,7.80269583,245.62,245.61,0.03]
[1758163241723,8.52269583,245.62,245.61,0.03]
[1758163242424,9.79629521,245.62,245.61,0.03]
[1758163242614,23.39188922,245.62,245.61,0.03]
[1758163243619,3.73136614,245.62,245.61,0.03]
[1758163243812,0.06,245.63,245.61,0.03]
[1758163244128,0.78,245.63,245.61,31.39]
[1758163244726,0.06,245.63,245.62,1.94359938]
[1758163244910,0.06,245.63,245.62,33.30359938]
[1758163246226,0.06,245.63,245.62,37.37492907]
[1758163247914,0.06,245.63,245.62,32.63359938]
[1758163248110,0.06,245.63,245.62,33.33359938]
[1758163251117,0.78,245.63,245.62,0.03]
[1758163251317,0.78,245.63,245.62,31.39]
[1758163251521,0.78,245.63,245.62,0.03]
[1758163251709,3.07163365,245.63,245.62,0.03]
[1758163251912,5.78385988,245.63,245.62,0.03]
[1758163253730,19.37945389,245.63,245.62,0.03]
[1758163256140,18.10585451,245.63,245.62,0.03]
[1758163256340,19.37945389,245.63,245.62,0.03]
[1758163256517,4.5102605,245.63,245.62,0.03]
[1758163256714,3.7902605,245.63,245.62,0.03]
[1758163256918,1.07803427,245.63,245.62,0.03]
[1758163257129,3.7902605,245.63,245.62,0.03]
[1758163258123,4.5102605,245.63,245.62,0.03]
[1758163258832,5.78385988,245.63,245.62,0.03]
[1758163259914,5.06385988,245.63,245.62,0.03]
[1758163260117,3.7902605,245.63,245.62,0.03]
[1758163260831,5.78391781,245.63,245.62,0.03]
[1758163261540,5.06391781,245.63,245.62,0.03]
[1758163261744,3.79031843,245.63,245.62,0.03]
[1758163261933,0.06,245.63,245.62,2.00359938]
[1758163263033,0.06,245.63,245.62,32.09]
[1758163263339,0.06,245.63,245.62,33.36359938]
[1758163267514,0.06,245.63,245.62,32.66359938]
[1758163268847,0.06,245.63,245.62,33.33359938]
[1758163269146,0.06,245.63,245.62,33.61792252]
[1758163269731,0.06,245.63,245.62,34.33282784]
[1758163270344,0.06,245.63,245.62,33.66282784]
[1758163270534,0.06,245.63,245.62,34.33282784]
[1758163271541,0.06,245.63,245.62,32.34432314]
[1758163271740,0.06,245.63,245.62,34.33282784]
[1758163274760,0.06,245.63,245.62,31.67432314]
[1758163274934,0.06,245.63,245.62,34.33282784]
[1758163275738,0.06,245.63,245.62,32.34432314]
[1758163275935,0.06,245.63,245.62,34.33282784]
[1758163277719,0.06,245.63,245.62,33.66282784]
[1758163280945,0.06,245.63,245.62,34.33282784]
[1758163283439,0.06,245.63,245.62,33.66282784]
[1758163284957,0.06,245.63,245.62,34.33282784]
[1758163285457,0.06,245.63,245.62,33.66282784]
[1758163286455,0.06,245.63,245.62,34.33282784]
[1758163286656,0.06,245.63,245.62,33.66282784]
[1758163286857,0.71,245.63,245.62,31.67432314]
[1758163287039,0.71,245.63,245.62,33.66282784]
[1758163287655,0.71,245.63,245.62,33.3785047]
[1758163287836,0.71,245.63,245.62,0.03]